bitfinex/quotes_ETHUSD_20240722
["timestamp","ask_amount","ask_price","bid_price","bid_amount"]
[1721661017327,2.90314,3444.6,3443.6,2.90392]
[1721661017539,0.8097945,3444.5,3443.6,2.90386]
[1721661017835,3.8097945,3444.5,3443.8,2.90376]
[1721661018015,10.22284,3444.9,3444.0,2.90356]
[1721661018220,2.90306,3444.7,3443.8,2.90369]
[1721661018396,2.90306,3444.7,3443.7,5.8076]
[1721661018397,2.90317,3444.5,3443.7,5.8076]
[1721661018592,2.9031,3444.6,3443.8,2.90376]
[1721661019432,2.90297,3444.8,3443.5,2.90397]
[1721661019733,1.556527,3444.7,3443.9,2.90366]
[1721661019901,2.90322,3444.5,3443.7,2.90382]
[1721661020098,1.556527,3444.7,3443.3,2.90417]
[1721661020295,5.95137,3444.3,3442.7,2.90468]
[1721661020540,2.90375,3443.9,3442.8,2.90457]
[1721661020721,2.90375,3443.9,3442.2,2.9051]
[1721661020722,2.90372,3443.9,3442.2,2.9051]
[1721661020903,2.90402,3443.5,3442.6,2.90471]
[1721661021103,2.90402,3443.5,3442.0,2.90764987]
[1721661021104,2.90402,3443.5,3442.5,2.90486]
[1721661021329,2.90424,3443.3,3442.1,3.36937755]
[1721661021639,2.90424,3443.3,3442.3,2.90495]
[1721661021849,0.290402,3443.4,3442.6,2.90478]
[1721661022153,0.290402,3443.4,3442.1,0.46424755]
[1721661022154,8.35192,3443.9,3442.1,0.46424755]
[1721661022296,8.35192,3443.9,3442.9,2.90446]
[1721661022297,5.4482,3443.9,3442.9,2.90446]
[1721661022500,2.90374,3443.9,3443.1,2.90434]
[1721661022815,2.90369,3443.9,3443.0,2.90437]
[1721661023118,2.90392,3443.7,3442.7,2.90467]
[1721661023330,2.90392,3443.7,3442.5,2.9048]
[1721661023331,0.290392,3443.6,3442.5,2.9048]
[1721661023555,0.290392,3443.6,3442.7,2.90467]
[1721661023838,2.90372,3443.9,3442.4,5.02003381]
[1721661024136,12.70819,3444.5,3443.4,2.90405]
[1721661024137,2.9033,3444.4,3443.4,2.90405]
[1721661024452,0.35,3444.5,3443.2,2.90419]
[1721661024613,2.90352,3444.1,3443.2,2.90419]
[1721661024794,0.30941797,3444.4,3443.0,2.90441]
[1721661024795,3.35741797,3444.4,3443.0,0.59988402]
[1721661025000,2.90399,3443.6,3442.8,2.90456]
[1721661025200,2.90399,3443.6,3442.9,2.52519435]
[1721661025496,2.90399,3443.6,3442.8,2.90456]
[1721661025693,5.3118,3444.1,3443.0,2.90439]
[1721661025694,2.90364,3444.0,3443.0,2.90439]
[1721661025900,0.821544,3443.9,3443.2,2.90424]
[1721661026096,10.22341,3444.3,3443.3,2.9041]
[1721661026297,2.90323,3444.5,3443.2,2.90424]
[1721661026298,3.048,3444.5,3443.2,2.90426]
[1721661026513,4.0907727,3444.6,3443.4,2.90403]
[1721661026514,6.21271797,3444.4,3443.4,2.90403]
[1721661026711,0.30941797,3444.4,3443.7,2.9038]
[1721661027029,4.0907527,3444.6,3443.8,2.90372]
[1721661027580,1.1876527,3444.6,3443.8,2.90371]
[1721661027784,12.48675,3444.8,3443.8,2.90371]
[1721661027785,7.32,3444.8,3444.0,3.50342402]
[1721661027919,12.43,3445.3,3444.7,2.90301]
[1721661027920,7.32,3445.3,3444.7,2.90301]
[1721661028115,12.43,3445.8,3444.7,2.90297]
[1721661028116,2.90218,3445.7,3444.7,2.90297]
[1721661028469,2.90218,3445.7,3444.2,3.50326402]
[1721661028470,1.251428,3445.6,3444.8,2.90292]
[1721661028792,1.251428,3445.6,3444.5,1.51430334]
[1721661028793,4.153678,3445.6,3444.5,1.51430334]
[1721661028914,4.153678,3445.6,3444.9,2.90283]
[1721661029265,1.251428,3445.6,3444.9,2.90278]
[1721661029446,1.251428,3445.6,3445.1,2.90266]
[1721661029646,7.32,3445.8,3445.1,2.90266]
[1721661029818,7.32,3445.8,3445.3,2.90244]
[1721661030012,7.32,3445.8,3445.3,2.90245]
[1721661030263,7.32,3445.8,3445.4,2.90241]
[1721661030469,3.048,3446.2,3444.7,1.51416555]
[1721661030617,2.90232,3445.6,3444.6,1.51416555]
[1721661030954,2.90232,3445.6,3444.6,2.90309]
[1721661030955,2.90249,3445.4,3444.6,2.90309]
[1721661031159,2.90262,3445.2,3444.3,2.9033]
[1721661031328,2.90256,3445.3,3443.9,0.59988402]
[1721661031531,2.90256,3445.3,3444.0,2.90353]
[1721661031532,2.90301,3444.7,3444.0,2.90353]
[1721661031721,2.90301,3444.7,3443.5,2.90401]
[1721661031722,2.90318,3444.5,3443.5,2.90401]
[1721661031917,0.580598,3444.7,3443.4,1.51416555]
[1721661031918,2.90339,3444.3,3443.4,2.90402]
[1721661032263,2.95524642,3444.2,3443.2,2.90421]
[1721661032420,5.80711,3444.1,3443.1,2.90429]
[1721661032621,2.90351,3444.1,3443.2,2.90426]
[1721661032921,2.90351,3444.1,3443.1,2.90429]
[1721661032922,2.95544209,3444.0,3443.1,2.90433]
[1721661033253,2.95544209,3444.0,3442.9,2.90446]
[1721661033254,2.90375,3443.9,3442.9,2.90446]
[1721661033456,0.05173846,3443.9,3443.4,2.90402]
[1721661033762,0.05173846,3443.9,3443.8,5.80752]
[1721661033973,0.580598,3444.7,3444.2,2.90338]
[1721661034133,7.32,3444.9,3443.6,2.90391]
[1721661034329,0.05181041,3444.6,3444.2,2.90336]
[1721661034643,0.05179169,3444.5,3444.3,2.90327]
[1721661034831,0.05179169,3444.5,3444.4,2.90326]
[1721661035275,7.32,3444.9,3444.5,2.90316]
[1721661035431,7.32,3445.4,3444.7,2.90294]
[1721661035633,2.22835533,3445.4,3444.7,2.90296]
[1721661035929,7.32,3445.9,3445.3,2.90242]
[1721661036236,7.32,3446.4,3444.9,3.03405122]
[1721661036434,5.33404,3446.5,3445.7,2.90212]
[1721661036635,2.90159,3446.4,3445.5,2.90227]
[1721661036836,5.33405,3446.5,3445.6,5.80442]
[1721661037031,0.823541,3446.4,3445.6,2.90218]
[1721661037238,2.90166,3446.3,3445.4,2.90235]
[1721661037432,2.90166,3446.3,3445.6,2.90224]
[1721661037676,2.90166,3446.3,3445.5,2.90233]
[1721661038338,0.823541,3446.4,3445.5,2.90233]
[1721661038536,10.22119,3446.9,3445.1,0.05804525]
[1721661038898,10.22119,3446.9,3445.0,3.0]
[1721661038899,0.35,3446.7,3446.2,2.90173]
[1721661039077,2.90096,3447.2,3446.3,2.90165]
[1721661039383,5.33946,3447.3,3446.5,2.90149]
[1721661039587,5.33946,3447.3,3446.4,2.9015]
[1721661039736,0.533946,3447.2,3446.5,2.90146]
[1721661039931,0.533946,3447.2,3446.4,2.90149]
[1721661040352,0.533946,3447.2,3446.5,2.90147]
[1721661040546,0.533946,3447.2,3446.2,2.9017]
[1721661040547,0.533946,3447.2,3446.4,2.90156]
[1721661040751,0.533946,3447.2,3446.5,2.90147]
[1721661040948,7.32,3447.7,3446.7,2.90125]
[1721661041149,0.04895869,3447.1,3447.0,5.80214]
[1721661041383,7.32,3447.7,3446.9,2.976]
[1721661041688,2.89991,3448.4,3447.5,5.8013]
[1721661041689,0.04901218,3447.6,3447.5,5.8013]
[1721661041981,7.32,3448.4,3447.6,2.90056]
[1721661042151,7.32,3448.9,3447.9,2.976]
[1721661042481,7.32,3449.4,3448.0,2.90023]
[1721661042651,2.89886,3449.7,3448.7,2.89963]
[1721661042859,3.048,3450.1,3448.1,0.55]
[1721661043176,2.89872,3449.8,3448.2,2.90004]
[1721661043379,0.289872,3449.7,3448.2,2.90004]
[1721661043536,0.289872,3449.7,3448.9,2.89941]
[1721661043736,0.289872,3449.7,3449.1,2.8993]
[1721661043978,0.289872,3449.7,3449.2,2.89916]
[1721661044192,9.605,3450.2,3449.3,2.89909]
[1721661044475,9.605,3450.2,3449.2,2.89916]
[1721661045289,0.025,3450.3,3449.5,2.89896]
[1721661045471,0.025,3450.3,3449.3,2.89913]
[1721661045800,0.025,3450.3,3448.8,2.89949]
[1721661045801,2.8988,3449.7,3448.8,2.89949]
[1721661046089,2.89855,3450.0,3449.1,2.89928]
[1721661046283,10.2184,3450.2,3448.4,5.821]
[1721661046284,7.32,3450.2,3448.4,5.821]
[1721661046438,0.7345,3450.1,3449.1,2.89928]
[1721661046645,0.7345,3450.1,3448.7,0.05797952]
[1721661046888,7.32,3450.2,3449.5,2.89896]
[1721661047161,0.025,3450.3,3449.5,2.89894]
[1721661047343,0.025,3450.3,3449.2,0.05797161]
[1721661047592,0.025,3450.3,3448.8,3.116]
[1721661047593,0.025,3450.3,3449.6,2.89888]
[1721661047794,0.025,3450.3,3450.2,2.89838]
[1721661048138,0.025,3450.3,3449.7,2.89875]
[1721661048490,0.025,3450.3,3449.3,0.55]
[1721661048786,0.025,3450.3,3449.8,2.89869]
[1721661048950,0.025,3450.3,3449.9,2.89862]
[1721661049153,0.025,3450.3,3450.0,2.89849]
[1721661049154,0.04437709,3450.2,3450.0,2.89849]
[1721661049383,0.04437709,3450.2,3449.3,0.344931]
[1721661049689,0.025,3450.3,3449.9,2.8986]
[1721661049995,0.04436792,3450.1,3449.6,2.89887]
[1721661050290,0.04435532,3450.0,3449.6,2.89888]
[1721661050609,0.025,3450.3,3448.8,2.89951]
[1721661050740,2.89878,3449.8,3448.8,2.8995]
[1721661050944,2.89865,3449.9,3448.8,2.8995]
[1721661051170,0.95953,3450.2,3448.1,2.90011]
[1721661051171,0.04431459,3449.7,3448.1,2.90011]
[1721661051381,0.04432377,3449.8,3449.6,2.89884]
[1721661051555,0.95953,3450.2,3449.2,2.89914]
[1721661051777,0.04433253,3449.7,3449.6,2.89888]
[1721661051978,0.04433253,3449.7,3449.4,2.89903]
[1721661052161,2.89838,3450.2,3449.4,2.89903]
[1721661052493,0.292338,3450.1,3448.8,2.89954]
[1721661052644,0.025,3450.3,3448.8,2.89954]
[1721661052645,2.89872,3449.8,3449.0,2.89938]
[1721661052850,0.025,3450.3,3448.8,2.89954]
[1721661052851,2.94288447,3450.0,3448.8,2.8995]
[1721661053089,0.025,3450.3,3449.4,2.89899]
[1721661053090,0.04429694,3449.7,3449.4,2.89899]
[1721661053293,2.9233,3450.3,3448.7,3.0]
[1721661053294,0.0443153,3449.9,3449.3,2.89912]
[1721661053475,0.04429963,3449.6,3449.4,2.89905]
[1721661053795,0.025,3450.3,3449.5,2.89897]
[1721661053951,1.049314,3450.3,3449.6,2.89887]
[1721661054152,0.04438315,3450.2,3449.6,2.89887]
[1721661054346,0.04438315,3450.2,3449.8,2.89864]
[1721661054589,0.04438315,3450.2,3449.9,2.89858]
[1721661054890,0.025,3450.3,3449.7,2.89876]
[1721661055043,0.04436924,3450.1,3449.7,2.89876]
[1721661055252,0.025,3450.3,3449.1,2.8993]
[1721661055468,0.04436006,3450.0,3449.8,2.89871]
[1721661055687,0.025,3450.3,3449.9,2.89863]
[1721661055898,0.025,3450.3,3450.0,2.89854]
[1721661056097,0.04437841,3450.2,3450.1,2.89841]
[1721661056394,0.04437841,3450.2,3450.0,2.89854]
[1721661056395,0.025,3450.3,3450.2,2.89838]
[1721661056562,0.025,3450.3,3450.0,2.89854]
[1721661056945,0.025,3450.3,3450.1,2.89846]
[1721661057146,0.025,3450.3,3450.0,2.89854]
[1721661057444,0.025,3450.3,3450.2,2.89838]
[1721661057650,0.025,3450.3,3450.2,5.79676]
[1721661058187,0.025,3450.3,3450.0,2.89851]
[1721661058484,0.025,3450.3,3450.0,2.89854]
[1721661058660,0.025,3450.3,3449.8,2.8987]
[1721661059172,0.025,3450.3,3450.0,2.89849]
[1721661059374,0.025,3450.3,3450.2,2.89838]
[1721661059683,0.025,3450.3,3450.0,2.89849]
[1721661060185,0.025,3450.3,3449.8,2.8987]
[1721661060491,0.025,3450.3,3449.5,2.89894]
[1721661060656,0.025,3450.3,3449.2,4.07072]
[1721661060657,0.025,3450.3,3450.2,2.89838]
[1721661061252,0.025,3450.3,3450.2,5.79676]
[1721661062159,0.025,3450.3,3450.2,6.34676]
[1721661062652,7.32,3451.4,3450.2,6.34676]
[1721661062653,7.32,3451.4,3450.6,2.89799]
[1721661062950,2.3467,3451.6,3450.8,2.89784]
[1721661063157,3.460782,3451.6,3450.8,2.89784]
[1721661063377,2.89733,3451.5,3450.3,0.05795564]
[1721661063594,3.460782,3451.6,3450.9,2.89777]
[1721661063773,10.21689,3452.0,3450.8,2.89783]
[1721661064095,2.89704,3451.8,3450.4,2.89815]
[1721661064302,10.21689,3452.0,3450.8,2.89783]
[1721661064303,7.32,3452.0,3450.8,2.89783]
[1721661064477,2.89725,3451.6,3450.7,2.89793]
[1721661064684,7.32,3452.0,3450.7,0.289793]
[1721661064685,2.89708,3451.8,3450.7,0.289793]
[1721661064891,2.89721,3451.6,3450.9,2.89777]
[1721661065050,2.89708,3451.8,3451.0,2.8977]
[1721661065270,2.89708,3451.8,3450.7,0.289793]
[1721661065271,2.89708,3451.8,3450.8,2.8978]
[1721661065566,10.21687,3452.0,3451.1,2.89762]
[1721661065822,8.864109,3452.0,3451.3,2.89739]
[1721661065981,2.89679,3452.1,3451.3,2.89739]
[1721661066181,7.32,3452.6,3450.7,0.289793]
[1721661066182,2.2738,3452.8,3451.2,0.05794285]
[1721661066415,2.2738,3452.8,3452.0,2.89682]
[1721661066416,0.35,3452.6,3452.0,2.89682]
[1721661066602,0.35,3452.6,3452.0,2.8968]
[1721661066904,2.8959,3453.2,3452.3,2.89656]
[1721661067114,1.24897,3453.1,3452.3,2.89655]
[1721661067297,1.24897,3453.1,3452.5,2.89638]
[1721661067610,7.32,3453.4,3452.7,2.89623]
[1721661067812,2.89565,3453.5,3452.5,2.89638]
[1721661067813,2.89528,3453.9,3453.1,2.89592]
[1721661067971,2.89528,3453.9,3452.9,2.89604]
[1721661068170,2.2664,3454.2,3452.5,2.964]
[1721661068171,2.91899,3453.7,3452.5,2.964]
[1721661068498,2.91899,3453.7,3452.8,2.89619]
[1721661068499,2.91896,3453.7,3452.8,2.89619]
[1721661068663,0.0235,3453.7,3453.1,2.89594]
[1721661068868,0.0235,3453.7,3452.6,3.0]
[1721661069069,0.0235,3453.7,3453.4,2.89568]
[1721661069301,0.0235,3453.7,3452.9,2.89609]
[1721661069483,0.0235,3453.7,3453.0,3.55]
[1721661069683,0.0235,3453.7,3453.0,2.89599]
[1721661069969,0.0459498,3453.6,3453.3,2.89577]
[1721661070178,0.0459498,3453.6,3453.5,2.89561]
[1721661070820,0.0235,3453.7,3453.4,2.89568]
[1721661071186,0.0235,3453.7,3453.6,2.89552]
[1721661071385,0.0235,3453.7,3453.6,5.84894055]
[1721661071580,0.0235,3453.7,3453.6,6.34104]
[1721661071886,0.0235,3453.7,3453.6,9.34104]
[1721661072086,0.0235,3453.7,3453.6,6.44552]
[1721661072288,0.0235,3453.7,3453.6,3.0]
[1721661072591,0.0235,3453.7,3453.3,2.89577]
[1721661072797,0.06942736,3453.7,3453.4,3.0]
[1721661072978,0.06942736,3453.7,3453.2,3.0]
[1721661072979,2.89559,3453.6,3453.2,3.0]
[1721661073183,0.04591347,3453.6,3453.1,2.89594]
[1721661073380,0.04591347,3453.6,3453.2,3.0]
[1721661073621,0.0235,3453.7,3453.1,0.589594]
[1721661073622,0.0235,3453.7,3453.5,2.89558]
[1721661073791,0.0235,3453.7,3453.1,0.589594]
[1721661074133,2.89568,3453.5,3452.7,3.19622]
[1721661074430,2.91897,3453.7,3452.7,0.3]
[1721661074594,0.04597982,3453.4,3452.7,0.3]
[1721661074800,0.04608093,3453.6,3452.8,2.89612]
[1721661075012,0.04598684,3453.3,3453.0,2.89595]
[1721661075220,0.0235,3453.7,3453.0,2.89595]
[1721661075221,0.0235,3453.7,3453.2,2.89583]
[1721661075621,0.0235,3453.7,3453.0,0.319595]
[1721661075831,0.0235,3453.7,3452.7,3.0]
[1721661076043,2.89608,3453.0,3452.5,3.0]
[1721661076337,2.91898,3453.7,3451.5,7.31]
[1721661076338,2.4428,3453.4,3451.5,7.31]
[1721661076649,5.4908,3453.4,3450.9,2.89779]
[1721661076955,2.89653,3452.4,3451.6,2.89712]
[1721661077132,6.29395,3453.1,3451.0,0.5894183]
[1721661077133,10.368,3453.0,3451.0,0.5894183]
[1721661077452,10.368,3453.0,3450.3,7.31]
[1721661077453,2.89734,3451.5,3450.3,7.31]
[1721661077733,2.89785,3450.9,3450.0,2.89853]
[1721661077936,2.89763,3451.1,3450.0,3.478242]
[1721661078111,2.89737,3451.4,3450.6,2.89799]
[1721661078311,2.89721,3451.6,3450.6,2.89799]
[1721661078509,2.89721,3451.6,3450.7,2.89793]
[1721661078837,2.89721,3451.6,3450.6,2.89799]
[1721661078838,2.2901,3451.7,3450.6,2.89799]
[1721661079037,2.89687,3452.1,3451.1,2.89761]
[1721661079237,2.89687,3452.1,3450.4,2.3302]
[1721661079238,2.89679,3452.1,3450.4,2.3302]
[1721661079398,3.048,3452.2,3450.2,2.89836]
[1721661079399,2.89749,3451.3,3450.2,2.89836]
[1721661079600,2.2742,3452.3,3450.0,2.89853]
[1721661079601,2.89788,3450.8,3450.0,2.89853]
[1721661079932,2.89738,3451.4,3450.4,2.89815]
[1721661080243,7.32,3452.0,3450.8,2.89781]
[1721661080445,2.2742,3452.3,3450.9,0.579582]
[1721661080446,2.89721,3451.6,3450.9,0.579582]
[1721661080743,5.17085,3452.3,3450.9,3.477362]
[1721661080744,2.89699,3451.9,3450.9,3.477362]
[1721661080896,2.89742,3451.4,3450.4,2.89819]
[1721661081102,2.89719,3451.7,3450.2,2.89835]
[1721661081346,2.89719,3451.7,3450.0,2.89852]
[1721661081347,2.89768,3451.1,3450.3,3.44827]
[1721661081522,5.17087,3452.3,3450.3,3.44827]
[1721661081523,7.32,3451.8,3450.3,0.55]
[1721661081726,2.89722,3451.6,3450.7,2.89789]
[1721661081933,2.89711,3451.8,3450.7,5.7958]
[1721661082104,2.89722,3451.6,3450.8,2.89782]
[1721661082641,0.517087,3452.2,3451.0,2.89764]
[1721661082642,2.89689,3452.0,3451.0,2.89764]
[1721661082858,2.89689,3452.0,3451.2,2.89749]
[1721661083161,2.2742,3452.3,3451.3,0.579518]
[1721661083304,2.89744,3451.4,3450.9,3.0]
[1721661083504,2.89763,3451.1,3450.3,3.44829]
[1721661083743,2.89725,3451.6,3450.8,2.89783]
[1721661084051,2.89763,3451.1,3450.3,0.55]
[1721661084214,7.67,3452.1,3450.3,0.344841]
[1721661084215,2.89735,3451.5,3450.3,0.344841]
[1721661084415,2.89748,3451.3,3450.1,2.89839]
[1721661084729,2.89748,3451.3,3450.1,2.89842]
[1721661084932,2.89765,3451.1,3450.3,2.89823]
[1721661085137,2.89765,3451.1,3450.1,2.89842]
[1721661085138,2.89736,3451.5,3450.6,2.89802]
[1721661085314,2.89736,3451.5,3450.6,0.579621]
[1721661085516,2.89747,3451.3,3450.6,0.579621]
[1721661086008,2.89735,3451.5,3450.7,2.89789]
[1721661086203,2.89735,3451.5,3450.6,0.579621]
[1721661086204,0.04562606,3451.2,3450.9,2.89771]
[1721661086431,2.89717,3451.7,3450.7,2.89789]
[1721661086637,2.89717,3451.7,3450.9,2.89773]
[1721661086954,2.89729,3451.5,3450.8,3.2456111]
[1721661087106,0.04563654,3451.6,3450.9,2.89773]
[1721661087301,2.89717,3451.7,3450.9,2.89773]
[1721661087302,0.04566961,3451.4,3450.9,2.89773]
[1721661087506,5.17089,3452.3,3450.8,0.3477511]
[1721661087507,2.89698,3451.9,3451.1,2.89757]
[1721661087748,0.04561071,3451.3,3451.2,3.187247]
[1721661087957,2.89662,3452.3,3451.2,0.34769859]
[1721661088121,2.89627,3452.8,3451.8,2.89696]
[1721661088304,2.3406,3452.9,3451.4,0.05793441]
[1721661088658,7.56428,3453.3,3451.7,2.89706]
[1721661088808,5.79263,3452.7,3451.8,6.447]
[1721661089155,2.89633,3452.7,3451.8,6.44695]
[1721661089446,2.89633,3452.7,3451.9,3.831343]
[1721661090391,2.89581,3453.3,3452.2,2.8967]
[1721661090589,2.3406,3453.5,3452.1,2.89678]
[1721661090590,2.89601,3453.1,3452.1,2.89678]
[1721661090886,2.89601,3453.1,3452.0,3.0]
[1721661090887,2.89613,3452.9,3452.2,0.55]
[1721661091087,2.89597,3453.1,3452.2,0.55]
[1721661091088,2.89603,3453.0,3452.3,0.344679]
[1721661091394,2.89608,3453.0,3452.3,0.344679]
[1721661091771,5.23628,3453.5,3452.3,0.344679]
[1721661091772,2.3406,3453.5,3452.3,0.344679]
[1721661091975,2.89662,3452.3,3451.9,0.934403]
[1721661092271,2.89677,3452.2,3451.3,2.8974]
[1721661092586,2.89677,3452.2,3451.5,2.89724]
[1721661092743,2.89677,3452.2,3451.6,3.0]
[1721661092951,2.89696,3451.9,3451.1,2.89761]
[1721661093145,2.89676,3452.2,3451.3,2.89738]
[1721661093466,2.89629,3452.7,3451.9,2.8969]
[1721661093666,2.89629,3452.7,3451.9,2.89689]
[1721661093867,2.89629,3452.7,3452.0,2.89684]
[1721661094068,2.89614,3452.9,3451.7,2.89707]
[1721661094069,2.89639,3452.6,3452.1,0.289684]
[1721661094378,2.89639,3452.6,3451.7,2.89707]
[1721661094379,2.89652,3452.5,3451.7,2.89707]
[1721661094583,2.89654,3452.4,3451.8,0.55]
[1721661094758,2.89639,3452.6,3451.8,0.55]
[1721661095085,2.8966,3452.4,3451.8,0.55]
[1721661095244,2.89606,3453.0,3451.4,5.89735]
[1721661095245,2.89687,3452.0,3451.7,3.0]
[1721661095444,2.89687,3452.0,3451.4,3.0]
[1721661095665,2.8963,3452.7,3451.0,2.89767]
[1721661095666,2.89711,3451.8,3451.0,2.89767]
[1721661095848,2.89722,3451.6,3450.9,2.89774]
[1721661096047,0.04581126,3451.5,3451.1,2.89762]
[1721661096383,0.04581126,3451.5,3450.8,0.3477511]
[1721661096384,2.89676,3452.2,3451.4,2.89731]
[1721661096792,2.4125,3452.4,3451.2,2.89749]
[1721661096793,2.89696,3451.9,3451.2,2.89749]
[1721661096973,2.89696,3451.9,3451.3,0.289749]
[1721661097345,2.89708,3451.8,3451.3,0.289749]
[1721661097663,2.89696,3451.9,3451.3,0.289749]
[1721661097841,2.4125,3452.4,3451.3,0.289749]
[1721661097842,2.89686,3452.1,3451.3,0.289749]
[1721661098045,2.89686,3452.1,3451.3,3.187149]
[1721661098299,2.89687,3452.0,3451.3,3.187149]
[1721661098455,2.89675,3452.2,3451.4,0.6084759]
[1721661098656,2.89683,3452.1,3451.4,0.6084759]
[1721661098856,2.89703,3451.8,3451.4,0.6084759]
[1721661099061,2.4125,3452.4,3451.0,3.0]
[1721661099062,2.89729,3451.5,3451.0,3.0]
[1721661099243,2.89724,3451.6,3450.7,2.89788]
[1721661099244,2.89724,3451.6,3450.8,3.0]
[1721661099445,2.89697,3451.9,3451.0,2.89771]
[1721661099706,2.89692,3452.0,3451.2,2.89748]
[1721661100000,2.89692,3452.0,3451.1,3.0]
[1721661100001,5.79367,3452.1,3451.3,2.89745]
[1721661100176,2.89681,3452.1,3451.4,0.579506]
[1721661100587,2.89688,3452.0,3451.4,0.579506]
[1721661100759,9.7325,3452.4,3450.9,2.89775]
[1721661100962,9.7325,3452.4,3450.8,3.0]
[1721661100963,2.89708,3451.8,3451.0,6.4477]
[1721661101263,0.0457547,3451.7,3451.0,6.44765]
[1721661101605,2.8971,3451.8,3451.1,2.89758]
[1721661101776,0.04574553,3451.6,3451.1,2.89756]
[1721661101982,2.89696,3451.9,3451.2,3.542266]
[1721661102177,0.04574142,3451.5,3451.2,0.644756]
[1721661102405,10.21658,3452.4,3451.4,2.89737]
[1721661102622,2.8967,3452.2,3451.5,2.89722]
[1721661102761,10.21658,3452.4,3451.6,2.8972]
[1721661102961,10.21658,3452.4,3451.6,3.476655]
[1721661103372,10.21658,3452.4,3451.7,2.89711]
[1721661103583,2.89624,3452.8,3451.8,2.89703]
[1721661103782,2.89645,3452.6,3451.6,2.89715]
[1721661103990,2.89681,3452.1,3451.7,3.0]
[1721661104175,2.2748,3452.9,3451.8,2.89699]
[1721661104176,2.89647,3452.5,3451.8,2.89699]
[1721661104503,2.8963,3452.7,3451.9,2.89691]
[1721661104663,2.8962,3452.8,3452.1,2.89674]
[1721661104864,2.89613,3452.9,3452.1,2.89674]
[1721661105077,2.89613,3452.9,3452.1,2.89672]
[1721661105306,2.89607,3453.0,3452.3,2.89657]
[1721661105600,2.89607,3453.0,3452.2,2.89665]
[1721661105811,2.89607,3453.0,3452.3,2.89656]
[1721661106409,2.89607,3453.0,3452.3,2.89661]
[1721661106608,2.89621,3452.8,3452.1,2.89672]
[1721661106810,2.89621,3452.8,3452.2,0.579362]
[1721661106811,2.89637,3452.6,3452.2,0.579362]
[1721661106979,2.89658,3452.4,3451.8,3.0]
[1721661107188,2.89662,3452.3,3451.7,0.589736]
[1721661107378,2.89662,3452.3,3451.8,0.55]
[1721661107722,2.89662,3452.3,3451.0,7.31]
[1721661107723,0.57932,3452.3,3451.0,7.31]
[1721661108015,2.897,3451.9,3451.2,2.89754]
[1721661108372,2.89679,3452.1,3451.2,2.89754]
[1721661108571,3.19590197,3453.4,3451.4,2.8973]
[1721661108572,2.89674,3452.2,3451.4,2.8973]
[1721661108769,2.89629,3452.7,3451.4,2.89732]
[1721661108971,2.89648,3452.5,3451.0,2.89766]
[1721661109203,2.89678,3452.1,3451.3,2.8974]
[1721661109405,2.89685,3452.1,3451.1,0.55]
[1721661109706,2.897,3451.9,3451.1,2.89755]
[1721661109924,2.897,3451.9,3451.2,4.027039]
[1721661110208,2.89683,3452.1,3451.3,2.89744]
[1721661110413,8.95016,3452.9,3451.2,1.129529]
[1721661110414,2.89701,3451.9,3451.2,1.129529]
[1721661110572,2.89712,3451.7,3451.0,3.0]
[1721661110773,0.04580369,3451.8,3451.2,2.89753]
[1721661111090,0.04580563,3451.7,3451.0,2.89765]
[1721661111428,2.89716,3451.7,3451.1,3.0]
[1721661111707,0.04579647,3451.6,3451.0,2.8977]
[1721661111906,0.04579647,3451.6,3451.1,3.85569711]
[1721661112412,0.04579647,3451.6,3451.2,2.89747]
[1721661112621,2.89683,3452.1,3451.4,2.89732]
[1721661112818,0.04572741,3451.5,3451.4,2.89731]
[1721661112972,2.40669847,3452.2,3451.5,2.89727]
[1721661113168,2.89655,3452.4,3451.6,0.634472]
[1721661113475,2.89655,3452.4,3451.6,3.531672]
[1721661114170,2.89621,3452.8,3451.6,0.634472]
[1721661114483,2.89621,3452.8,3451.4,3.44732]
[1721661114484,2.8967,3452.2,3451.4,3.44732]
[1721661114692,2.89643,3452.6,3451.8,5.79399]
[1721661115023,2.89643,3452.6,3451.8,2.89697]
[1721661115176,2.89646,3452.5,3451.8,2.89697]
[1721661115380,2.89641,3452.6,3451.4,0.55]
[1721661115624,2.89624,3452.8,3451.8,5.79397]
[1721661115783,2.89644,3452.6,3451.9,2.89694]
[1721661116144,2.89644,3452.6,3451.6,2.89716]
[1721661116145,2.89655,3452.4,3451.8,2.89702]
[1721661116303,0.04434922,3452.5,3452.0,2.89686]
[1721661116480,2.89615,3452.9,3452.2,2.89669]
[1721661116679,2.896,3453.1,3452.3,3.475924]
[1721661116885,2.896,3453.1,3452.4,2.89651]
[1721661116886,2.89595,3453.1,3452.4,2.89651]
[1721661117084,2.89595,3453.1,3452.5,0.05792302]
[1721661117316,0.04446024,3453.0,3452.5,0.05792302]
[1721661117521,0.04446024,3453.0,3452.3,0.579354]
[1721661117711,2.89582,3453.3,3452.4,0.55]
[1721661118020,0.04447618,3452.9,3452.4,3.44648]
[1721661118198,2.89595,3453.1,3452.5,2.89644]
[1721661118397,0.04448518,3452.8,3452.5,2.89644]
[1721661118734,0.04448548,3452.7,3452.4,3.44653]
[1721661118882,5.79197,3453.1,3452.4,0.55]
[1721661119105,0.04450585,3453.0,3452.3,2.89657]
[1721661119342,0.04450585,3453.0,3452.4,4.091177]